fUST/lending_fUST_20250117
["ID","MTS","AMOUNT","RATE_DAILY","PERIOD"]
[349295046,1737102644416,-593.29,0.00022876,3]
[349295047,1737102644426,-2950.0,0.0002297,2]
[349295048,1737102644435,-7438.69753278,0.00023,2]
[349295049,1737102644444,-7438.69753278,0.00023,3]
[349295050,1737102644453,-553.32942862,0.00023,2]
[349295051,1737102644463,-316.62715695,0.00023,2]
[349295052,1737102644472,-500.0,0.00023011,11]
[349295053,1737102644482,-3828.42,0.00023013,3]
[349295054,1737102644491,-1236.11,0.00023013,3]
[349295055,1737102644500,-764.88,0.00023013,3]
[349295056,1737102644509,-8424.1,0.00023013,3]
[349295057,1737102644518,-500.0,0.00023013,2]
[349295058,1737102644528,-780.69,0.00023013,3]
[349295059,1737102644538,-720.16,0.00023013,3]
[349295060,1737102644547,-7796.62,0.00023013,3]
[349295061,1737102644556,-500.0,0.00023013,3]
[349295062,1737102644565,-1886.3,0.00023013,3]
[349295063,1737102644574,-500.0,0.00023013,3]
[349295064,1737102644583,-2087.85,0.00023013,3]
[349295065,1737102644593,-500.0,0.00023013,3]
[349295066,1737102644602,-500.0,0.00023013,3]
[349295067,1737102644612,-3423.0,0.00023013,3]
[349295068,1737102644621,-500.0,0.00023013,3]
[349295069,1737102644639,-703.51,0.00023013,3]
[349295070,1737102644649,-500.0,0.00023013,3]
[349295071,1737102644659,-927.19,0.00023013,3]
[349295072,1737102644671,-828.24,0.00023013,3]
[349295073,1737102644684,-539.17,0.00023013,3]
[349295074,1737102644695,-10413.95,0.00023013,3]
[349295075,1737102644706,-1825.16,0.00023013,3]
[349295076,1737102644716,-593.29,0.00023013,3]
[349295077,1737102644727,-500.0,0.00023143,2]
[349295078,1737102644737,-3828.42,0.0002315,3]
[349295079,1737102644747,-1236.11,0.0002315,3]
[349295080,1737102644756,-764.88,0.0002315,3]
[349295081,1737102644765,-8424.1,0.0002315,3]
[349295082,1737102644775,-500.0,0.0002315,2]
[349295083,1737102644784,-780.69,0.0002315,3]
[349295084,1737102644794,-720.16,0.0002315,3]
[349295085,1737102644804,-7796.62,0.0002315,3]
[349295086,1737102644814,-500.0,0.0002315,3]
[349295087,1737102644823,-1886.3,0.0002315,3]
[349295088,1737102644833,-500.0,0.0002315,3]
[349295089,1737102644842,-2087.85,0.0002315,3]
[349295090,1737102644851,-500.0,0.0002315,3]
[349295091,1737102644862,-500.0,0.0002315,3]
[349295092,1737102644873,-3423.0,0.0002315,3]
[349295093,1737102644883,-500.0,0.0002315,3]
[349295094,1737102644893,-703.51,0.0002315,3]
[349295095,1737102644904,-500.0,0.0002315,3]
[349295096,1737102644917,-927.19,0.0002315,3]
[349295097,1737102644928,-828.24,0.0002315,3]
[349295098,1737102644940,-539.17,0.0002315,3]
[349295099,1737102644951,-10413.95,0.0002315,3]
[349295100,1737102644961,-1825.16,0.0002315,3]
[349295101,1737102644971,-593.29,0.0002315,3]
[349295102,1737102644982,-256.833087,0.00023189,2]
[349295103,1737102644992,-3828.42,0.00023287,3]
[349295104,1737102645001,-1236.11,0.00023287,3]
[349295105,1737102645012,-764.88,0.00023287,3]
[349295106,1737102645021,-8424.1,0.00023287,3]
[349295107,1737102645030,-500.0,0.00023287,2]
[349295108,1737102645039,-780.69,0.00023287,3]
[349295109,1737102645049,-720.16,0.00023287,3]
[349295110,1737102645058,-7796.62,0.00023287,3]
[349295111,1737102645068,-500.0,0.00023287,3]
[349295112,1737102645076,-1886.3,0.00023287,3]
[349295113,1737102645086,-500.0,0.00023287,3]
[349295114,1737102645095,-2087.85,0.00023287,3]
[349295115,1737102645105,-500.0,0.00023287,3]
[349295116,1737102645114,-500.0,0.00023287,3]
[349295117,1737102645124,-3423.0,0.00023287,3]
[349295118,1737102645133,-500.0,0.00023287,3]
[349295119,1737102645142,-703.51,0.00023287,3]
[349295120,1737102645152,-500.0,0.00023287,3]
[349295121,1737102645161,-927.19,0.00023287,3]
[349295122,1737102645172,-828.24,0.00023287,3]
[349295123,1737102645182,-539.17,0.00023287,3]
[349295124,1737102645191,-10413.95,0.00023287,3]
[349295125,1737102645200,-1825.16,0.00023287,3]
[349295126,1737102645209,-511.78003056,0.00023287,4]
[349295127,1737102645219,-593.29,0.00023287,3]
[349295128,1737102645229,-189357.60229044,0.000233,3]
[349295129,1737102645238,-500.83249291,0.0002342,7]
[349295130,1737102645248,-461.0596862,0.0002342,7]
[349295131,1737102645259,-239.91720094,0.00023423,2]
[349295132,1737102645268,-3828.42,0.00023424,3]
[349295133,1737102645278,-1236.11,0.00023424,3]
[349295134,1737102645288,-764.88,0.00023424,3]
[349295136,1737102645298,-8424.1,0.00023424,3]
[349295138,1737102645308,-500.0,0.00023424,2]
[349295139,1737102645318,-780.69,0.00023424,3]
[349295140,1737102645328,-720.16,0.00023424,3]
[349295141,1737102645339,-7796.62,0.00023424,3]
[349295142,1737102645349,-500.0,0.00023424,3]
[349295145,1737102645359,-1886.3,0.00023424,3]
[349295147,1737102645370,-500.0,0.00023424,3]
[349295148,1737102645380,-2087.85,0.00023424,3]
[349295149,1737102645390,-500.0,0.00023424,3]
[349295150,1737102645400,-500.0,0.00023424,3]
[349295151,1737102645411,-3423.0,0.00023424,3]
[349295152,1737102645426,-457.31907242,0.00023424,3]
[349295153,1737102645437,-703.51,0.00023424,3]
[349295154,1737102645449,-500.0,0.00023424,3]
[349295155,1737102645459,-927.19,0.00023424,3]
[349295156,1737102645470,-828.24,0.00023424,3]
[349295157,1737102645482,-539.17,0.00023424,3]
[349295158,1737102645493,-10413.95,0.00023424,3]
[349295159,1737102645502,-1825.16,0.00023424,3]
[349295160,1737102645512,-593.29,0.00023424,3]
[349295162,1737102645522,-395.0,0.00023432,2]
[349295164,1737102645531,-22556.50618562,0.00023436,2]
[349295166,1737102645541,-184.99447007,0.00023461,2]
[349295167,1737102645550,-184.99447003,0.00023473,2]
[349295168,1737102645559,-184.99447003,0.00023485,2]
[349295169,1737102645568,-184.99447003,0.00023496,2]
[349295170,1737102645577,-519.64390499,0.000235,2]
[349295172,1737102645586,-151.0,0.000235,9]
[349295174,1737102645595,-7781.32,0.000235,2]
[349295175,1737102645604,-202.246867,0.000235,7]
[349295176,1737102645614,-202.246867,0.000235,7]
[349295177,1737102645623,-16697.18832989,0.000235,2]
[349295178,1737102645632,-184.99447003,0.00023508,2]
[349295180,1737102645641,-18928.96046322,0.00023556,2]
[349295182,1737102645656,-500.0,0.00023561,3]
[349295184,1737102645665,-3828.42,0.00023561,3]
[349295186,1737102645678,-1236.11,0.00023561,3]
[349295188,1737102645688,-764.88,0.00023561,3]
[349295190,1737102645697,-8424.1,0.00023561,3]
[349295192,1737102645706,-500.0,0.00023561,2]
[349295194,1737102645716,-780.69,0.00023561,3]
[349295196,1737102645728,-720.16,0.00023561,3]
[349295198,1737102645737,-7796.62,0.00023561,3]
[349295200,1737102645747,-500.0,0.00023561,3]
[349295202,1737102645756,-1886.3,0.00023561,3]
[349295204,1737102645766,-500.0,0.00023561,3]
[349295206,1737102645775,-2087.85,0.00023561,3]
[349295208,1737102645785,-500.0,0.00023561,3]
[349295210,1737102645795,-151.0,0.00023561,7]
[349295212,1737102645804,-342.48877712,0.00023561,3]
[349295214,1737102645815,-3423.0,0.00023561,3]
[349295216,1737102645824,-151.0,0.00023561,7]
[349295218,1737102645833,-703.51,0.00023561,3]
[349295220,1737102645843,-500.0,0.00023561,3]
[349295222,1737102645853,-927.19,0.00023561,3]
[349295224,1737102645862,-151.0,0.00023561,7]
[349295226,1737102645871,-151.0,0.00023561,7]
[349295228,1737102645881,-828.24,0.00023561,3]
[349295230,1737102645890,-539.17,0.00023561,3]
[349295232,1737102645900,-10413.95,0.00023561,3]
[349295234,1737102645909,-1825.16,0.00023561,3]
[349295236,1737102645922,-593.29,0.00023561,3]
[349295238,1737102645932,-2000.0,0.000236,2]
[349295240,1737102645943,-2000.0,0.000236,2]
[349295242,1737102645953,-2000.0,0.000236,2]
[349295244,1737102645962,-151.0,0.000236,6]
[349295246,1737102645972,-26011.56419616,0.00023619,59]
[349295248,1737102645981,-160.0,0.00023628,4]
[349295250,1737102645991,-164.51934332,0.00023628,5]
[349295252,1737102646000,-750.11016729,0.00023647,14]
[349295268,1737102646128,-168.275291,0.00023665,7]
[349295270,1737102646142,-151.0,0.00023665,7]
[349295272,1737102646151,-90023.61210196,0.00023667,5]
[349295282,1737102646238,-1392.87627185,0.00023667,5]
[349295284,1737102646248,-11861.84222798,0.00023667,5]
[349295287,1737102646260,-3924.19833938,0.00023667,5]
[349295289,1737102646270,-203.780155,0.00023667,7]
[349295291,1737102646279,-151.0,0.00023667,7]
[349295293,1737102646289,-202.246867,0.00023667,7]
[349295295,1737102646299,-202.246867,0.00023667,7]
[349295297,1737102646309,-151.0,0.00023667,7]
[349295299,1737102646318,-202.246867,0.00023667,7]
[349295301,1737102646328,-202.246867,0.00023667,7]
[349295303,1737102646339,-151.0,0.00023667,7]
[349295305,1737102646348,-202.246867,0.00023667,7]
[349295307,1737102646358,-151.0,0.00023667,7]
[349295309,1737102646367,-202.246867,0.00023667,7]
[349295311,1737102646377,-151.0,0.00023667,7]
[349295313,1737102646387,-151.0,0.00023667,7]
[349295315,1737102646398,-202.246867,0.00023667,7]
[349295317,1737102646408,-151.0,0.00023667,7]
[349295319,1737102646421,-202.246867,0.00023667,7]
[349295321,1737102646430,-151.0,0.00023667,7]
[349295323,1737102646440,-180.536519,0.00023667,7]
[349295324,1737102646449,-140.493363,0.00023667,7]
[349295326,1737102646462,-61.753504,0.00023667,7]
[349295328,1737102646472,-202.246867,0.00023667,7]
[349295330,1737102646481,-202.246867,0.00023667,7]
[349295332,1737102646491,-202.246867,0.00023667,7]
[349295334,1737102646502,-202.246867,0.00023667,7]
[349295336,1737102646512,-202.246867,0.00023667,7]
[349295338,1737102646522,-202.246867,0.00023667,7]
[349295340,1737102646532,-202.246867,0.00023667,7]
[349295342,1737102646542,-202.246867,0.00023667,7]
[349295344,1737102646552,-202.246867,0.00023667,7]
[349295346,1737102646564,-151.0,0.00023667,7]
[349295348,1737102646574,-184.952134,0.00023667,7]
[349295350,1737102646583,-151.0,0.00023667,7]
[349295352,1737102646593,-151.0,0.00023667,7]
[349295354,1737102646603,-151.0,0.00023667,7]
[349295356,1737102646613,-151.0,0.00023667,7]
[349295358,1737102646622,-73.45023588,0.00023667,7]
[349295361,1737102646635,-77.54976412,0.00023667,7]
[349295363,1737102646646,-151.0,0.00023667,7]
[349295365,1737102646657,-151.0,0.00023667,7]
[349295367,1737102646667,-151.0,0.00023667,7]
[349295368,1737102646678,-151.0,0.00023667,7]
[349295370,1737102646687,-41.04960588,0.00023667,7]
[349295373,1737102646703,-109.95039412,0.00023667,7]
[349295375,1737102646712,-151.0,0.00023667,7]
[349295377,1737102646725,-151.0,0.00023667,7]
[349295378,1737102646734,-151.0,0.00023667,7]
[349295379,1737102646744,-283.441224,0.00023667,7]
[349295380,1737102646754,-31481.65724991,0.00023667,61]
[349295385,1737102646794,-184.99447003,0.0002352,2]
[349295387,1737102646804,-153241.24626581,0.00023667,61]
[349295389,1737102646816,-441.39314169,0.00023667,61]
[349295398,1737102646891,-184.99447003,0.00023532,2]
[349295400,1737102646901,-219815.00552997,0.00023667,61]
[349295402,1737102646913,-8075.77,0.00023667,61]
[349295404,1737102646929,-4461.31251841,0.00023667,61]
[349295406,1737102646940,-520.83,0.00023667,61]
[349295418,1737102647039,-186.85829106,0.00021717,2]
[349295420,1737102647048,-292.84610982,0.00021969,2]
[349295422,1737102647058,-1610.31555825,0.00023667,61]
[349295560,1737102787134,238.068418,0.00013973,2]
[349295565,1737103530546,1000.0,0.00025,120]
[349295571,1737103627896,234.262231,0.00013973,2]
[349295674,1737103835261,-4170.25765073,0.00018187,2]
[349295675,1737103835271,-501.34442033,0.0001869,2]
[349295676,1737103835280,-1000.0,0.00019,19]
[349295677,1737103835290,-260.2506721,0.00019431,2]
[349295678,1737103835299,-500.0,0.00019674,2]
[349295679,1737103835309,-500.0,0.00019855,2]
[349295680,1737103835318,-1000.0,0.0002,20]
[349295681,1737103835328,-1000.0,0.0002,3]
[349295682,1737103835339,-160.0,0.0002,2]
[349295683,1737103835349,-182.96431382,0.00020214,7]
[349295684,1737103835359,-169.68950187,0.00020342,2]
[349295685,1737103835369,-300.0,0.00020441,2]
[349295686,1737103835378,-24880.0,0.00020442,2]
[349295687,1737103835387,-154.3,0.00020442,2]
[349295688,1737103835397,-234.262231,0.00020447,2]
[349295689,1737103835408,-500.0,0.00020657,2]
[349295690,1737103835418,-180.472,0.00020792,2]
[349295691,1737103835427,-1000.0,0.00021,21]
[349295692,1737103835436,-1000.0,0.00021,4]
[349295693,1737103835445,-1225.73,0.000213,2]
[349295694,1737103835454,-384.23617848,0.000219,3]
[349295695,1737103835464,-164.287,0.00021916,2]
[349295697,1737103835473,-500.0,0.00021917,3]
[349295698,1737103835482,-500.0,0.00021917,3]
[349295699,1737103835491,-500.0,0.00021917,3]
[349295700,1737103835501,-504.47125319,0.00021917,3]
[349295701,1737103835510,-500.0,0.00021917,3]
[349295702,1737103835519,-500.0,0.00021917,3]
[349295703,1737103835528,-500.0,0.00021917,3]
[349295704,1737103835537,-500.0,0.00021917,3]
[349295706,1737103835547,-508.5352812,0.00021917,3]
[349295708,1737103835556,-500.0,0.00021917,3]
[349295710,1737103835565,-500.0,0.00021917,3]
[349295712,1737103835575,-527.27413725,0.00021917,3]
[349295714,1737103835584,-500.0,0.00021917,3]
[349295715,1737103835593,-500.0,0.00021917,3]
[349295716,1737103835602,-500.0,0.00021917,3]
[349295717,1737103835611,-500.0,0.00021917,3]
[349295718,1737103835622,-444.93860606,0.00021917,3]
[349295719,1737103835631,-500.0,0.00021917,3]
[349295720,1737103835641,-500.0,0.00021917,3]
[349295721,1737103835650,-192.27012577,0.00021917,3]
[349295722,1737103835661,-500.0,0.00021917,3]
[349295723,1737103835670,-500.0,0.00021917,3]
[349295724,1737103835680,-518.21629105,0.00021917,3]
[349295725,1737103835689,-232.54254037,0.00021917,3]
[349295726,1737103835699,-500.0,0.00021917,3]
[349295727,1737103835708,-500.0,0.00021917,3]
[349295728,1737103835717,-500.0,0.00021917,3]
[349295729,1737103835727,-201.13414929,0.00021917,3]
[349295730,1737103835736,-3861.04,0.00021917,3]
[349295731,1737103835746,-500.0,0.00021917,3]
[349295732,1737103835755,-500.0,0.00021917,3]
[349295733,1737103835765,-500.0,0.00021917,3]
[349295734,1737103835775,-500.0,0.00021917,3]
[349295735,1737103835784,-500.0,0.00021917,3]
[349295736,1737103835794,-500.0,0.00021917,3]
[349295737,1737103835803,-500.0,0.00021917,3]
[349295738,1737103835812,-500.0,0.00021917,3]
[349295739,1737103835823,-500.0,0.00021917,3]
[349295740,1737103835833,-500.0,0.00021917,3]
[349295741,1737103835842,-500.0,0.00021917,3]
[349295742,1737103835851,-273.10615024,0.00021917,3]
[349295743,1737103835860,-500.0,0.00021917,3]
[349295744,1737103835869,-175.19,0.00021917,3]
[349295745,1737103835878,-500.0,0.00021917,3]
[349295746,1737103835887,-1000.0,0.00021917,3]
[349295747,1737103835896,-500.0,0.00021917,3]
[349295748,1737103835907,-500.0,0.00021917,3]
[349295749,1737103835916,-500.0,0.00021917,3]
[349295750,1737103835926,-500.0,0.00021917,3]
[349295751,1737103835935,-500.0,0.00021917,3]
[349295752,1737103835945,-500.0,0.00021917,3]
[349295753,1737103835954,-500.0,0.00021917,3]
[349295754,1737103835964,-500.0,0.00021917,3]
[349295755,1737103835973,-212.03883814,0.00021917,3]
[349295756,1737103835982,-503.05140366,0.00021917,3]
[349295757,1737103835991,-500.0,0.00021917,3]
[349295758,1737103836001,-500.0,0.00021917,3]
[349295759,1737103836014,-305.23068279,0.00021917,3]
[349295760,1737103836024,-500.0,0.00021917,2]
[349295761,1737103836034,-500.0,0.00021917,3]
[349295762,1737103836044,-509.08671416,0.00021917,3]
[349295763,1737103836055,-500.0,0.00021917,3]
[349295764,1737103836064,-500.0,0.00021917,3]
[349295765,1737103836074,-500.0,0.00021917,3]
[349295766,1737103836084,-563.91,0.00021917,3]
[349295767,1737103836094,-500.0,0.00021917,3]
[349295768,1737103836103,-500.0,0.00021917,3]
[349295769,1737103836112,-509.43539642,0.00021917,3]
[349295770,1737103836122,-500.0,0.00021917,3]
[349295771,1737103836131,-500.0,0.00021917,3]
[349295772,1737103836140,-509.7641394,0.00021917,3]
[349295773,1737103836150,-514.74830745,0.00021917,3]
[349295774,1737103836161,-504.11,0.00021917,3]
[349295775,1737103836170,-500.0,0.00021917,3]
[349295776,1737103836182,-500.0,0.00021917,3]
[349295777,1737103836192,-196.82414318,0.00021917,3]
[349295778,1737103836200,-5841.56,0.00021917,3]
[349295779,1737103836210,-310.46387521,0.00021917,3]
[349295780,1737103836228,-189.53612479,0.00021917,3]
[349295781,1737103836237,-500.0,0.00021917,3]
[349295782,1737103836247,-500.0,0.00021917,3]
[349295783,1737103836256,-500.0,0.00021917,3]
[349295784,1737103836265,-350.06387521,0.00021917,3]
[349295811,1737103837913,-395.0,0.00020792,2]
[349295812,1737103837923,-149.93612479,0.00021917,3]
[349295814,1737103837933,-500.0,0.00021917,3]
[349295815,1737103837944,-500.0,0.00021917,3]
[349295816,1737103837954,-500.0,0.00021917,3]
[349295817,1737103837963,-500.0,0.00021917,3]
[349295818,1737103837973,-500.0,0.00021917,3]
[349295820,1737103837984,-509.61724572,0.00021917,3]
[349295822,1737103837994,-161.38307964,0.00021917,3]
[349295855,1737103840297,-312.2633,0.00021917,3]
[349295856,1737103840353,-26.35362036,0.00021917,3]
[349295857,1737103840363,-500.0,0.00021917,3]
[349295858,1737103840372,-506.0689604,0.00021917,3]
[349295859,1737103840381,-11.27741924,0.00021917,3]
[349295860,1737103840408,-488.72258076,0.00021917,3]
[349295861,1737103840417,-297.52541924,0.00021917,3]
[349295903,1737103843010,-202.47458076,0.00021917,3]
[349295905,1737103843020,-500.0,0.00021917,3]
[349295907,1737103843029,-1468.47976383,0.00021917,3]
[349295909,1737103843041,-2104.97023617,0.00021917,3]
[349295911,1737103843051,-500.0,0.00021917,3]
[349295913,1737103843060,-505.34602776,0.00021917,3]
[349295915,1737103843070,-500.0,0.00021917,3]
[349295917,1737103843079,-500.0,0.00021917,3]
[349295919,1737103843088,-560.71875632,0.00021917,3]
[349295921,1737103843098,-500.0,0.00021917,3]
[349295923,1737103843107,-500.0,0.00021917,3]
[349295925,1737103843116,-884.87,0.00021917,3]
[349295927,1737103843126,-500.0,0.00021917,3]
[349295929,1737103843135,-500.0,0.00021917,3]
[349295931,1737103843143,-500.0,0.00021917,3]
[349295933,1737103843153,-500.0,0.00021917,3]
[349295935,1737103843165,-956.94,0.00021917,3]
[349295937,1737103843174,-500.0,0.00021917,3]
[349295939,1737103843183,-500.0,0.00021917,3]
[349295941,1737103843193,-500.0,0.00021917,3]
[349295943,1737103843202,-500.0,0.00021917,3]
[349295945,1737103843211,-500.0,0.00021917,3]
[349295947,1737103843221,-500.0,0.00021917,3]
[349295950,1737103843231,-500.0,0.00021917,3]
[349295952,1737103843240,-500.0,0.00021917,3]
[349295954,1737103843250,-507.28388978,0.00021917,3]
[349295956,1737103843259,-1589.71,0.00021917,3]
[349295958,1737103843269,-500.0,0.00021917,3]
[349295960,1737103843279,-500.0,0.00021917,3]
[349295962,1737103843288,-500.0,0.00021917,3]
[349295964,1737103843297,-500.0,0.00021917,3]
[349295966,1737103843306,-500.0,0.00021917,3]
[349295968,1737103843315,-500.0,0.00021917,3]
[349295970,1737103843324,-500.0,0.00021917,3]
[349295972,1737103843334,-500.0,0.00021917,3]
[349295974,1737103843343,-402.53310782,0.00021917,3]
[349295975,1737103843354,-504.68194227,0.00021917,3]
[349295978,1737103843363,-500.0,0.00021917,3]
[349295979,1737103843372,-500.0,0.00021917,3]
[349295981,1737103843382,-500.0,0.00021917,3]
[349295984,1737103843392,-500.0,0.00021917,3]
[349295985,1737103843400,-500.0,0.00021917,3]
[349295988,1737103843411,-500.0,0.00021917,3]
[349295989,1737103843420,-500.0,0.00021917,3]
[349295991,1737103843430,-500.0,0.00021917,3]
[349295994,1737103843439,-500.0,0.00021917,3]
[349295996,1737103843448,-94.33244576,0.00021917,3]
[349295998,1737103843461,-405.66755424,0.00021917,3]
[349296000,1737103843470,-500.0,0.00021917,3]
[349296002,1737103843479,-500.0,0.00021917,3]
[349296004,1737103843489,-1775.52,0.00021917,3]
[349296006,1737103843499,-504.89986792,0.00021917,3]
[349296008,1737103843508,-501.16229742,0.00021917,3]
[349296010,1737103843517,-1701.54,0.00021917,3]
[349296012,1737103843526,-500.0,0.00021917,3]
[349296014,1737103843536,-500.0,0.00021917,3]
[349296016,1737103843545,-500.0,0.00021917,3]
[349296018,1737103843554,-500.0,0.00021917,3]
[349296020,1737103843563,-500.0,0.00021917,3]
[349296022,1737103843572,-505.26713758,0.00021917,3]
[349296024,1737103843581,-500.0,0.00021917,3]
[349296026,1737103843591,-502.10322181,0.00021917,3]
[349296028,1737103843600,-4323.66300063,0.00021917,3]
[349296030,1737103843615,-470.22699937,0.00021917,3]
[349296032,1737103843624,-500.0,0.00021917,3]
[349296034,1737103843634,-501.71090612,0.00021917,3]
[349296036,1737103843643,-281.93238762,0.00021917,3]
[349296039,1737103843654,-554.59761238,0.00021917,3]
[349296041,1737103843665,-500.0,0.00021917,3]
[349296043,1737103843674,-500.0,0.00021917,3]
[349296045,1737103843683,-500.0,0.00021917,3]
[349296047,1737103843692,-500.0,0.00021917,3]
[349296049,1737103843702,-500.0,0.00021917,3]
[349296051,1737103843713,-500.0,0.00021917,3]
[349296053,1737103843722,-323.93731939,0.00021917,3]
[349296055,1737103843731,-501.82953963,0.00021917,3]
[349296057,1737103843740,-502.05668159,0.00021917,3]
[349296059,1737103843750,-500.0,0.00021917,3]
[349296061,1737103843759,-566.55,0.00021917,3]
[349296063,1737103843769,-500.0,0.00021917,3]
[349296065,1737103843778,-500.0,0.00021917,3]
[349296067,1737103843788,-501.20619962,0.00021917,3]
[349296069,1737103843797,-229.23243794,0.00021969,3]
[349296255,1737104131293,514.13,0.00025,120]
[349296257,1737104500111,230.685692,0.00013973,2]
[349296276,1737104800440,3064.0,0.00025,120]
[349296337,1737105032317,-500.0,0.00018759,2]
[349296339,1737105032327,-164.85465372,0.000198,2]
[349296341,1737105032337,-5980.0,0.0002,2]
[349296343,1737105032347,-641.3640902,0.00020142,2]
[349296345,1737105032357,-230.685692,0.00020447,2]
[349296347,1737105032367,-166.486232,0.00020489,2]
[349296349,1737105032380,-300.0,0.00020791,2]
[349296351,1737105032391,-253.222,0.00020792,2]
[349296352,1737105032401,-2168.209,0.00020792,2]
[349296354,1737105032410,-582.938,0.00020792,2]
[349296355,1737105032421,-2309.0,0.00020792,2]
[349296357,1737105032431,-500.0,0.00020951,2]
[349296359,1737105032440,-434.47701644,0.0002096,2]
[349296360,1737105032451,-3000.0,0.00021,2]
[349296362,1737105032462,-200.31549184,0.00021,2]
[349296364,1737105032472,-3000.0,0.0002101,2]
[349296366,1737105032482,-3000.0,0.0002102,2]
[349296368,1737105032491,-3000.0,0.0002103,2]
[349296370,1737105032501,-3000.0,0.0002104,2]
[349296372,1737105032510,-3000.0,0.0002105,2]
[349296374,1737105032519,-3000.0,0.0002106,2]
[349296376,1737105032529,-3000.0,0.0002107,2]
[349296378,1737105032540,-164.287,0.0002107,2]
[349296381,1737105032550,-5656.598706,0.0002108,2]
[349296383,1737105032559,-212.761668,0.0002115,2]
[349296385,1737105032569,-212.761668,0.00021234,2]
[349296387,1737105032579,-1118.16,0.000213,2]
[349296389,1737105032588,-212.761668,0.00021319,2]
[349296391,1737105032598,-434.4770164,0.00021332,2]
[349296393,1737105032607,-212.761668,0.00021404,2]
[349296395,1737105032617,-212.761668,0.00021488,2]
[349296397,1737105032626,-212.761668,0.00021573,2]
[349296399,1737105032635,-3045.37176774,0.000216,4]
[349296401,1737105032649,-553.83063043,0.000216,4]
[349296403,1737105032661,-633.90707799,0.000216,4]
[349296407,1737105032685,-1746.89052384,0.000216,4]
[349296409,1737105032695,-212.761668,0.00021658,2]
[349296411,1737105032705,-11676.5509089,0.0002167,2]
[349296413,1737105032715,-434.4770164,0.00021704,2]
[349296415,1737105032724,-212.761668,0.00021743,2]
[349296417,1737105032734,-2254.02,0.000218,4]
[349296419,1737105032743,-204.79379082,0.00021817,2]
[349296421,1737105032753,-772.5636922,0.000219,3]
[349296423,1737105032763,-4604.08371871,0.00021917,5]
[349296958,1737105038156,-776.7065474,0.00021917,5]
[349296960,1737105038168,-1376.52683738,0.00021917,5]
[349296962,1737105038179,-697.53724156,0.00021917,5]
[349296966,1737105038211,-1318.87863605,0.00021917,5]
[349297620,1737105392249,2160.0,0.00025,120]
[349297621,1737105508836,207.617122,0.00013973,2]
[349297624,1737105761588,2500.0,0.00025,120]
[349298310,1737106243537,-500.0,0.00019855,2]
[349298312,1737106243547,-166.972371,0.00020212,2]
[349298314,1737106243557,-207.617122,0.00020447,2]
[349298316,1737106243566,-1328.38,0.00020975,2]
[349298318,1737106243576,-395.0,0.00020975,2]
[349298320,1737106243586,-4091.79224467,0.00021,30]
[349298322,1737106243596,-300.0,0.00021238,2]
[349298324,1737106243606,-8438.16367423,0.00021239,2]
[349298326,1737106243616,-1006.35,0.000216,2]
[349298328,1737106243626,-8438.16367424,0.00021626,2]
[349298330,1737106243636,-204.79379082,0.00021817,2]
[349298332,1737106243646,-784.7045,0.0002189,3]
[349298334,1737106243655,-180.607,0.000219,2]
[349298337,1737106243666,-371.2358012,0.000219,2]